lending/lending_fUSD_20240111
["ID","MTS","AMOUNT","RATE_DAILY","PERIOD"]
[311218038,1704984665151,-509.101184,0.00048767,120]
[311218040,1704984665166,-713.41,0.00048767,7]
[311218043,1704984665179,-407.280947,0.00048767,120]
[311218045,1704984665192,-2818.37,0.00048767,5]
[311218047,1704984665209,-564.72295717,0.00048767,30]
[311218050,1704984665224,-3990.47655286,0.00048767,30]
[311218052,1704984665235,-817.86226172,0.00048767,30]
[311218054,1704984665249,-1502.6336,0.00048767,30]
[311218056,1704984665262,-3770.04999941,0.00048767,5]
[311218059,1704984665275,-151.40111,0.00048798,10]
[311218061,1704984665289,-150.0,0.00048859,5]
[311218063,1704984665303,-952.54320104,0.000489,120]
[311218065,1704984665316,-223.95,0.0004898,120]
[311218067,1704984665331,-500.0,0.00048987,47]
[311218070,1704984665344,-85491.32890851,0.00048987,30]
[311218072,1704984665357,-200.0,0.00048987,28]
[311218074,1704984665371,-151.0,0.00048987,14]
[311218077,1704984665383,-6124.54452974,0.0004899,14]
[311218079,1704984665396,-220.0,0.0004899,120]
[311218081,1704984665410,-100000.0,0.00049,19]
[311218084,1704984665424,-328.184018,0.00049,14]
[311218086,1704984665438,-328.184018,0.00049,14]
[311218089,1704984665452,-3000.0,0.00049,2]
[311218091,1704984665467,-711.62540707,0.00049,30]
[311218093,1704984665478,-598.73273333,0.00049,30]
[311218095,1704984665488,-18780.69417935,0.00049,30]
[311218097,1704984665498,-447.0,0.00049,120]
[311218099,1704984665507,-500.0,0.00049,120]
[311218101,1704984665517,-4730.67493728,0.00049,120]
[311218103,1704984665527,-12623.0,0.00049,120]
[311218105,1704984665537,-600.0,0.00049,30]
[311218107,1704984665547,-325.10812763,0.00049,30]
[311218109,1704984665557,-18964.51497554,0.00049,120]
[311218111,1704984665568,-25398.39100762,0.00049,60]
[311218113,1704984665580,-1543.74909015,0.00049,20]
[311218115,1704984665590,-250.0,0.00049,30]
[311218117,1704984665600,-300.0,0.00049,50]
[311218119,1704984665610,-950.0,0.00049,3]
[311218121,1704984665620,-300.0,0.00049,26]
[311218123,1704984665630,-150.0,0.00049,108]
[311218125,1704984665641,-282.94,0.00049009,2]
[311218127,1704984665652,-713.41,0.00049041,7]
[311218129,1704984665662,-1000.0,0.00049056,2]
[311218131,1704984665672,-150.53030045,0.00049102,41]
[311218133,1704984665682,-151.05441259,0.00049121,8]
[311218135,1704984665693,-151.05441259,0.00049121,9]
[311218137,1704984665703,-151.05441259,0.00049121,9]
[311218139,1704984665714,-151.05441259,0.00049121,12]
[311218141,1704984665723,-151.05441259,0.00049121,12]
[311218143,1704984665733,-151.05441259,0.00049121,11]
[311218145,1704984665743,-151.05441259,0.00049121,8]
[311218147,1704984665753,-151.05441259,0.00049121,8]
[311218149,1704984665763,-151.05441259,0.00049121,12]
[311218151,1704984665773,-151.05441259,0.00049121,11]
[311218154,1704984665784,-151.05441259,0.00049121,9]
[311218155,1704984665793,-151.05441259,0.00049121,11]
[311218158,1704984665804,-151.05441259,0.00049121,9]
[311218160,1704984665814,-151.05441259,0.00049121,11]
[311218161,1704984665826,-151.05441259,0.00049121,8]
[311218164,1704984665836,-151.05441259,0.00049121,9]
[311218166,1704984665847,-151.05441259,0.00049121,9]
[311218168,1704984665857,-151.05441259,0.00049121,11]
[311218169,1704984665867,-151.05441259,0.00049121,8]
[311218171,1704984665878,-151.05441259,0.00049121,9]
[311218196,1704984665888,-151.05441259,0.00049121,12]
[311218200,1704984666166,-151.05441259,0.00049121,10]
[311218203,1704984666189,-151.05441259,0.00049121,9]
[311218205,1704984666202,-151.05441259,0.00049121,9]
[311218207,1704984666213,-151.05441259,0.00049121,10]
[311218209,1704984666223,-151.05441259,0.00049121,12]
[311218211,1704984666233,-151.05441259,0.00049121,10]
[311218213,1704984666244,-151.05441259,0.00049121,10]
[311218215,1704984666255,-151.05441259,0.00049121,10]
[311218217,1704984666267,-151.05441259,0.00049121,9]
[311218219,1704984666277,-151.05441259,0.00049121,8]
[311218221,1704984666287,-151.05441259,0.00049121,9]
[311218223,1704984666298,-151.05441259,0.00049121,8]
[311218224,1704984666308,-151.05441259,0.00049121,11]
[311218227,1704984666318,-151.05441259,0.00049121,12]
[311218228,1704984666331,-151.05441259,0.00049121,9]
[311218230,1704984666342,-151.05441259,0.00049121,10]
[311218233,1704984666353,-151.05441259,0.00049121,8]
[311218235,1704984666364,-151.05441259,0.00049121,12]
[311218236,1704984666375,-151.05441259,0.00049121,10]
[311218238,1704984666386,-151.05441259,0.00049121,9]
[311218240,1704984666397,-151.05441259,0.00049121,11]
[311218243,1704984666408,-151.05441259,0.00049121,12]
[311218245,1704984666418,-151.05441259,0.00049121,10]
[311218247,1704984666429,-151.05441259,0.00049121,10]
[311218249,1704984666440,-151.05441259,0.00049121,10]
[311218251,1704984666451,-151.05441259,0.00049121,10]
[311218252,1704984666461,-151.05441259,0.00049121,10]
[311218255,1704984666471,-151.05441259,0.00049121,9]
[311218257,1704984666482,-151.05441259,0.00049121,10]
[311218259,1704984666493,-151.05441259,0.00049121,12]
[311218261,1704984666503,-33539.45027628,0.00049159,120]
[311218263,1704984666515,-151.40111,0.00049198,10]
[311218265,1704984666526,-400.0,0.00049205,120]
[311218267,1704984666536,-371.0,0.00049315,30]
[311218269,1704984666547,-210.0,0.00049315,30]
[311218271,1704984666558,-190.0,0.00049315,30]
[311218273,1704984666569,-230.0,0.00049315,30]
[311218275,1704984666582,-150.0,0.00049315,30]
[311218277,1704984666593,-713.41,0.00049315,7]
[311218279,1704984666604,-500.0,0.00049315,16]
[311218280,1704984666615,-185.98,0.00049315,30]
[311218282,1704984666625,-200.0,0.00049315,60]
[311218284,1704984666636,-350.0,0.00049342,120]
[311218287,1704984666648,-1000.0,0.0004938,30]
[311218289,1704984666659,-150.0,0.00049389,60]
[311218290,1704984666670,-151.40111,0.00049498,10]
[311218293,1704984666681,-11704.93256864,0.0004957,7]
[311218299,1704984666779,-12600.90977256,0.0004957,7]
[311218300,1704984666793,-15723.7339788,0.0004957,7]
[311218301,1704984666804,-713.41,0.00049589,7]
[311218302,1704984666815,-186.0,0.00049589,10]
[311218303,1704984666827,-481.0,0.00049589,3]
[311218305,1704984666839,-151.7,0.00049658,2]
[311218306,1704984666850,-2002.68,0.0004972,2]
[311218307,1704984666865,-155.05872377,0.0004977,5]
[311218308,1704984666876,-151.40111,0.00049798,10]
[311218309,1704984666887,-100780.39476234,0.000498,30]
[311218310,1704984666909,-11169.21872641,0.000498,30]
[311218311,1704984666921,-713.41,0.00049863,7]
[311218313,1704984666937,-707.00839568,0.0004989,3]
[311218315,1704984666952,-2523.99160432,0.0004989,3]
[311218317,1704984666963,-7103.43559568,0.0004995,120]
[311218320,1704984666981,-1042.54355582,0.0004995,120]
[311218323,1704984667006,-500.0,0.00043287,30]
[311218325,1704984667017,-66.3559105,0.00049039,5]
[311218328,1704984667030,-83.6440895,0.00049039,5]
[311218330,1704984667040,-39123.67080846,0.0004995,120]
[311218332,1704984667052,-6683.90870573,0.0004995,120]
[311218341,1704984667412,-3009.9384513,0.0003641,10]
[311218342,1704984667422,-7625.30154869,0.00039078,3]
[311218343,1704984667435,-47929.69845131,0.00039078,3]
[311218344,1704984667445,-500.0,0.00042465,30]
[311218345,1704984667457,-500.0,0.00042465,30]
[311218346,1704984667467,-500.0,0.00042465,30]
[311218347,1704984667477,-500.0,0.00042465,30]
[311218348,1704984667487,-500.0,0.00042465,30]
[311218349,1704984667498,-500.0,0.00042465,30]
[311218350,1704984667509,-568.93,0.00042465,30]
[311218351,1704984667519,-500.0,0.00042465,30]
[311218352,1704984667530,-500.0,0.00042465,30]
[311218353,1704984667541,-500.0,0.00042465,30]
[311218354,1704984667551,-500.0,0.00042465,30]
[311218355,1704984667561,-614.68,0.00043561,30]
[311218356,1704984667573,-2000.0,0.0004606,120]
[311218357,1704984667587,-609.832583,0.00047945,120]
[311218358,1704984667597,-150.0,0.00049219,5]
[311218359,1704984667607,-150.0,0.00049399,5]
[311218360,1704984667618,-150.0,0.00049579,5]
[311218361,1704984667629,-150.0,0.00049759,5]
[311218362,1704984667640,-150.0,0.00049939,5]
[311218363,1704984667651,-18470.60315658,0.0004995,120]
[311218364,1704984667664,-136560.41845908,0.0004995,120]
[311218365,1704984667677,-63919.23456271,0.0004995,120]
[311218366,1704984667690,-105694.70107988,0.0004995,120]
[311218367,1704984667718,-334.517,0.00042465,30]
[311218368,1704984667730,-30.31122688,0.00042465,30]
[311218369,1704984667741,-500.0,0.00042465,30]
[311218370,1704984667751,-2463.92201258,0.0004995,120]
[311218371,1704984667764,-4866.4,0.0004995,120]
[311218372,1704984667781,-486.01,0.0004995,120]
[311218373,1704984667802,-53576.17802322,0.0004995,120]
[311218374,1704984667814,-1478.0,0.0004995,120]
[311218375,1704984667868,-500.0,0.00042465,30]
[311218376,1704984667880,-155.32657961,0.00042465,30]
[311218377,1704984667892,-344.67342039,0.00042465,30]
[311218378,1704984667902,-348.75318876,0.000443,2]
[311218379,1704984667914,-168.51594345,0.000443,2]
[311218380,1704984667924,-1779.40727695,0.0004995,120]
[311218381,1704984667936,-4019.09127962,0.0004995,120]
[311218382,1704984668061,-500.0,0.00042739,30]
[311218383,1704984668070,-8605.68784994,0.0004995,120]
[311218384,1704984668085,-1450.86,0.0004995,120]
[311218385,1704984668103,-42675.92763375,0.0004995,120]
[311218386,1704984668113,-100130.31048369,0.0004995,120]
[311218387,1704984668125,-399869.68951631,0.0004995,120]
[311218388,1704984668135,-328.184018,0.0004995,14]
[311218389,1704984668145,-328.184018,0.0004995,14]
[311218390,1704984668154,-151.0,0.0004995,14]
[311218391,1704984668164,-589.435325,0.0004995,14]
[311218392,1704984668174,-589.435325,0.0004995,14]
[311218393,1704984668184,-177.348512,0.0004995,14]
[311218394,1704984668194,-476.652934,0.0004995,14]
[311218395,1704984668206,-476.652934,0.0004995,14]
[311218396,1704984668216,-400.0,0.00049973,120]
[311218397,1704984668225,-505.9146876,0.0004998,10]
[311218398,1704984668235,-577.48701443,0.0004998,3]
[311218399,1704984668244,-500.0,0.00049987,49]
[311218400,1704984668254,-200.0,0.00049987,29]
[311218401,1704984668264,-15504.70650339,0.0004999,30]
[311218402,1704984668279,-341.0707035,0.0004999,30]
[311218403,1704984668291,-577.11500056,0.0004999,30]
[311218404,1704984668308,-476.87,0.0004999,30]
[311218405,1704984668437,-500.0,0.00042465,30]
[311218406,1704984668447,-500.0,0.00042465,30]
[311218407,1704984668457,-477.06642295,0.00042465,30]
[311218408,1704984668468,-500.0,0.00042465,5]
[311218409,1704984668478,-500.0,0.00042739,30]
[311218410,1704984668489,-500.0,0.00042739,5]
[311218411,1704984668500,-421.34,0.00043013,30]
[311218412,1704984668510,-7939.72736543,0.0004999,30]
[311218413,1704984668521,-4464.0,0.0004999,3]
[311218414,1704984668530,-1000.0,0.00049999,120]
[311218415,1704984668540,-1514.4537699,0.00049999,30]
[311218416,1704984668550,-2412.74417017,0.0005,20]
[311218417,1704984668566,-9806.11541095,0.0005,20]
[311218418,1704984668577,-10931.89726295,0.0005,20]
[311218419,1704984668591,-38482.31717314,0.0005,20]
[311218420,1704984668603,-38366.92598279,0.0005,20]
[311218421,1704984668613,-156.26452501,0.0005,4]
[311218422,1704984668623,-19840.42584696,0.0005,12]
[311218423,1704984668635,-3926.29279947,0.0005,12]
[311218424,1704984668647,-5803.12701958,0.0005,12]
[311218425,1704984668659,-30458.62525303,0.0005,12]
[311218426,1704984668672,-65978.11449944,0.0005,12]
[311218427,1704984668683,-3690.96171802,0.0005,12]
[311218428,1704984668696,-4433.97644039,0.0005,12]
[311218429,1704984668705,-268.9618525,0.0005,4]
[311218430,1704984668715,-155.38867096,0.0005,4]
[311218431,1704984668724,-228.46926673,0.0005,4]
[311218432,1704984668735,-262.80608255,0.0005,7]
[311218433,1704984668753,-176.45,0.00042719,10]
[311218434,1704984668762,-14737.19391745,0.0005,7]
[311218435,1704984668772,-214.24556526,0.0005,4]
[311218436,1704984668781,-500.21592521,0.0005,10]
[311218437,1704984668790,-272.40982102,0.0005,4]
[311218438,1704984668800,-305.33349401,0.0005,2]
[311218439,1704984668810,-560.0,0.0005,4]
[311218440,1704984668819,-1107.36229362,0.0005,2]
[311218441,1704984668828,-200.0,0.0005,2]
[311218442,1704984668839,-9360.74780013,0.0005,2]
[311218443,1704984668849,-168.89932307,0.0005,28]
[311218444,1704984668859,-2531.56504776,0.0005,5]
[311218445,1704984668868,-924.56722078,0.0005,12]
[311218446,1704984668878,-29160.90496577,0.0005,30]
[311218447,1704984668887,-5000.0,0.0005,120]
[311218448,1704984668897,-5000.0,0.0005,120]
[311218449,1704984668907,-2000.0,0.0005,120]
[311218450,1704984668916,-1162.69834766,0.0005,120]
[311218451,1704984668926,-150.0,0.0005,2]
[311218452,1704984668935,-6000.0,0.0005,120]
[311218453,1704984668944,-74783.4125165,0.0005,120]
[311218454,1704984668956,-12433.83310283,0.0005,120]
[311218455,1704984668969,-134564.47289575,0.0005,120]
[311218456,1704984668981,-9168.53191911,0.0005,120]
[311218457,1704984668992,-22837.81152505,0.0005,120]
[311218458,1704984669014,-500.0,0.00042465,30]
[311218459,1704984669027,-23799.80859064,0.0005,120]
[311218460,1704984669050,-9314.54167465,0.0005,120]
[311218461,1704984669078,-6193.49274852,0.0005,120]
[311218462,1704984669105,-25594.23311325,0.0005,120]
[311218463,1704984669117,-15291.13302579,0.0005,120]
[311218464,1704984669141,-10672.05080403,0.0005,120]
[311218465,1704984669154,-18137.96029522,0.0005,120]
[311218466,1704984669174,-42102.22772145,0.0005,120]
[311218467,1704984669195,-31582.7753621,0.0005,120]
[311218468,1704984669219,-3049.96318433,0.0005,120]
[311218469,1704984669233,-15351.60004911,0.0005,120]
[311218470,1704984669247,-45122.15147167,0.0005,120]
[311218471,1704984669256,-73.08854631,0.0005,120]
[311218472,1704984669288,-14258.62018745,0.0005,120]
[311218473,1704984669305,-40714.07869674,0.0005,120]
[311218474,1704984669320,-44460.22406776,0.0005,120]
[311218475,1704984669346,-32332.12014071,0.0005,120]
[311218476,1704984669358,-851.00919509,0.0005,120]
[311218477,1704984669370,-15529.38848194,0.0005,120]
[311218478,1704984669383,-2026.86829742,0.0005,120]
[311218479,1704984669396,-280.3212234,0.0005,120]
[311218480,1704984669407,-2160.15609505,0.0005,120]
[311218481,1704984669419,-346757.50398659,0.0005,120]
[311218482,1704984669431,-556.62108154,0.0005,120]
[311218483,1704984669461,-300.0,0.0005,120]
[311218484,1704984669472,-350.0,0.0005,25]
[311218485,1704984669492,-10719.50833766,0.0005,14]
[311218486,1704984669502,-500.0,0.0005,120]
[311218487,1704984669516,-155.0,0.0005,2]
[311218488,1704984669528,-1869.42058081,0.0005,30]
[311218489,1704984669586,-2350.30715758,0.0005,30]
[311218490,1704984669651,-399.24532989,0.0005,30]
[311218491,1704984669673,-500.0,0.00042465,30]
[311218492,1704984669684,-2565.4101479,0.0005,30]
[311218493,1704984669696,-927.69049948,0.0005,2]
[311218494,1704984669707,-5654.35575262,0.0005,120]
[311218495,1704984669871,-1000.0,0.000367,2]
[311218496,1704984669883,-500.0,0.00042739,30]
[311218497,1704984669894,-9345.64424738,0.0005,120]
[311218498,1704984669905,-1000.0,0.0005,30]
[311218499,1704984669915,-170.0,0.0005,14]
[311218500,1704984669926,-1000.0,0.0005,120]
[311218501,1704984669936,-1000.0,0.0005,6]
[311218502,1704984669946,-203.64375138,0.0005,30]
[311218503,1704984669956,-505.98,0.0005,120]
[311218504,1704984669966,-419.0,0.0005,120]
[311218505,1704984669975,-417.94618176,0.0005,30]
[311218506,1704984669985,-43783.22719237,0.0005,2]
[311218507,1704984669996,-3873.1844425,0.0005,120]
[311218508,1704984670005,-313.94448385,0.0005,2]
[311218509,1704984670015,-600.0,0.0005,30]
[311218510,1704984670024,-200.0,0.0005,120]
[311218511,1704984670034,-19120.67756331,0.0005,120]
[311218512,1704984670044,-231.84270292,0.0005,10]
[311218513,1704984670054,-16263.84143313,0.0005,120]
[311218514,1704984670066,-414.90954947,0.0005,120]
[311218515,1704984670081,-14938.10072284,0.0005,120]
[311218516,1704984670092,-152.66578003,0.0005,30]
[311218517,1704984670102,-500.0,0.0005,120]
[311218518,1704984670113,-420.73399848,0.0005,30]
[311218519,1704984670390,7027.5286,0.00034,2]
[311218520,1704984670604,-4383.87607557,0.00036409,4]
[311218521,1704984670614,-155.0,0.00037,4]
[311218522,1704984670625,-194.44410764,0.000394,4]
[311218523,1704984670637,-3043.36461426,0.000394,4]
[311218524,1704984670646,-150.0,0.00041236,2]
[311218525,1704984670656,-150.0,0.00041236,2]
[311218526,1704984670666,-150.0,0.00041236,2]
[311218527,1704984670676,-538.38888893,0.00042464,4]
[311218528,1704984670685,-160.85253438,0.00042464,4]
[311218529,1704984670695,-609.79396243,0.00042464,4]
[311218530,1704984670754,-85.57910518,0.00042464,4]
[311218531,1704984670763,-299.34094687,0.00042464,4]
[311218532,1704984670775,-700.65905313,0.00042464,4]
[311218533,1704984670785,-1414.50696306,0.00042464,4]
[311218534,1704984670794,-583.83229945,0.00042464,2]
[311218535,1704984670804,-500.0,0.00042465,30]
[311218536,1704984670813,-500.0,0.00042465,30]
[311218537,1704984670823,-500.0,0.00042465,30]
[311218538,1704984670835,-500.0,0.00042465,30]
[311218539,1704984670845,-500.0,0.00042465,30]
[311218540,1704984670855,-500.0,0.00042465,30]
[311218541,1704984670865,-500.0,0.00042465,30]
[311218542,1704984670875,-500.0,0.00042465,30]
[311218543,1704984670885,-500.0,0.00042465,30]
[311218544,1704984670895,-303.26418442,0.00042465,30]
[311218545,1704984670905,-500.0,0.00042465,30]
[311218546,1704984670915,-500.0,0.00042465,30]
[311218547,1704984670925,-500.0,0.00042465,30]
[311218548,1704984670936,-500.0,0.00042465,30]
[311218549,1704984670946,-500.0,0.00042465,30]
[311218550,1704984670956,-569.99,0.00042465,30]
[311218551,1704984670966,-500.0,0.00042465,30]
[311218552,1704984670976,-500.0,0.00042465,30]
[311218553,1704984670986,-500.0,0.00042739,30]
[311218554,1704984670997,-500.0,0.00042739,30]
[311218555,1704984671007,-500.0,0.00042739,30]
[311218556,1704984671018,-500.0,0.00042739,30]
[311218557,1704984671028,-500.0,0.00042739,30]
[311218558,1704984671038,-500.0,0.00042739,30]
[311218559,1704984671048,-500.0,0.00042739,30]
[311218560,1704984671057,-500.0,0.00042739,30]
[311218561,1704984671067,-500.0,0.00042739,30]
[311218562,1704984671077,-170.20616057,0.00042739,30]
[311218563,1704984671089,-500.0,0.00042739,30]
[311218564,1704984671099,-500.0,0.00042739,30]
[311218565,1704984671108,-500.0,0.00042739,30]
[311218566,1704984671119,-500.0,0.00042739,30]
[311218567,1704984671128,-569.99,0.00042739,30]
[311218568,1704984671138,-1796.0,0.00043,120]
[311218569,1704984671148,-500.0,0.00043013,30]
[311218570,1704984671159,-500.0,0.00043013,30]
[311218571,1704984671169,-500.0,0.00043013,30]
[311218572,1704984671179,-500.0,0.00043013,30]
[311218573,1704984671189,-500.0,0.00043013,30]
[311218574,1704984671199,-500.0,0.00043013,30]
[311218575,1704984671213,-500.0,0.00043013,30]
[311218576,1704984671223,-508.25131725,0.00043013,30]
[311218577,1704984671233,-488.47819993,0.00043013,30]
[311218578,1704984671243,-500.0,0.00043013,30]
[311218580,1704984671253,-500.0,0.00043013,30]
[311218581,1704984671263,-500.0,0.00043013,30]
[311218582,1704984671273,-500.0,0.00043013,30]
[311218583,1704984671282,-624.92798665,0.00043287,30]
[311218584,1704984671293,-294.0811493,0.00043287,30]
[311218585,1704984671302,-197.64,0.00043287,30]
[311218586,1704984671312,-500.0,0.00043287,30]
[311218587,1704984671322,-500.0,0.00043287,30]
[311218588,1704984671332,-500.0,0.00043287,30]
[311218589,1704984671344,-500.0,0.00043287,30]
[311218590,1704984671354,-500.0,0.00043287,30]
[311218591,1704984671363,-500.0,0.00043287,30]
[311218592,1704984671373,-500.0,0.00043561,30]
[311218593,1704984671382,-592.53,0.00043561,30]
[311218594,1704984671392,-500.0,0.00043561,30]
[311218595,1704984671401,-500.0,0.00043561,30]
[311218596,1704984671412,-546.18,0.00043561,30]
[311218597,1704984671422,-500.0,0.00043561,30]
[311218598,1704984671433,-150.0,0.00043778,2]
[311218599,1704984671444,-150.0,0.00043815,2]
[311218600,1704984671453,-150.0,0.00043823,2]
[311218601,1704984671464,-500.0,0.00043835,30]
[311218602,1704984671474,-500.0,0.00043835,30]
[311218603,1704984671483,-500.0,0.00043835,30]
[311218604,1704984671495,-500.0,0.00043835,30]
[311218605,1704984671504,-150.0,0.00043886,2]
[311218606,1704984671514,-150.0,0.00043924,2]
[311218607,1704984671523,-150.0,0.0004395,2]
[311218608,1704984671533,-150.0,0.00043954,2]
[311218609,1704984671542,-150.0,0.00043967,2]
[311218610,1704984671553,-150.0,0.00044006,2]
[311218611,1704984671563,-500.0,0.00044109,30]
[311218612,1704984671573,-500.0,0.00044109,30]
[311218613,1704984671583,-500.0,0.00044109,30]
[311218614,1704984671597,-500.0,0.00044383,30]
[311218615,1704984671608,-187.0,0.00044383,30]
[311218616,1704984671620,-281.09,0.00044383,30]
[311218617,1704984671630,-517.26913219,0.000446,2]
[311218618,1704984671641,-500.0,0.00044657,30]
[311218619,1704984671652,-500.0,0.00044931,30]
[311218620,1704984671662,-500.0,0.00045205,30]
[311218621,1704984671672,-500.0,0.00045479,30]
[311218622,1704984671683,-240.50398781,0.00045753,30]
[311218623,1704984671693,-79.26600152,0.0005,30]
[311218624,1704984671702,-10000.0,0.0005,51]
[311218625,1704984671714,-604.69,0.0005,65]
[311218626,1704984671723,-150.0,0.0005,2]
[311218627,1704984671733,-6340.0,0.0005,30]
[311218628,1704984671743,-6640.19070252,0.0005,4]
[311218629,1704984671753,-1900.0,0.0005,120]
[311218630,1704984671763,-61978.23988465,0.0005,120]
[311218631,1704984671773,-808.83678014,0.0005,120]
[311218632,1704984671782,-4431.6,0.0005,30]
[311218633,1704984671792,-458.36892921,0.0005,120]
[311218634,1704984671802,-300.0,0.0005,51]
[311218635,1704984671811,-779.99000532,0.0005,120]
[311218636,1704984671821,-10000.0,0.0005,2]
[311218637,1704984671832,-5379.55761229,0.0005,4]
[311218638,1704984671844,-341.20969115,0.0005,30]
[311218639,1704984671854,-150.9667427,0.0005,2]
[311218640,1704984671864,-848.90182959,0.0005,120]
[311218641,1704984671873,-500.0,0.0005,120]
[311218642,1704984671883,-1756.69752529,0.0005,7]
[311218644,1704984671894,-1855.11099091,0.0005,4]
[311218645,1704984671904,-96531.0,0.0005,12]
[311218646,1704984671913,-511.26,0.0005,7]
[311218647,1704984671923,-1440.29,0.0005,7]
[311218648,1704984671933,-328.184018,0.0005,14]
[311218649,1704984671944,-328.184018,0.0005,14]
[311218650,1704984671955,-162.583023,0.0005,14]
[311218651,1704984671965,-200.0,0.0005,30]
[311218652,1704984671975,-589.435325,0.0005,14]
[311218653,1704984671985,-589.435325,0.0005,14]
[311218654,1704984671996,-300.0,0.0005,27]
[311218655,1704984672006,-300.0,0.0005,27]
[311218656,1704984672016,-150.0,0.0005,120]
[311218657,1704984672026,-150.0,0.0005,120]
[311218658,1704984672035,-476.652934,0.0005,14]
[311218659,1704984672045,-476.652934,0.0005,14]
[311218660,1704984672055,-789.66761273,0.0005,2]
[311218661,1704984672064,-150.0,0.0005,27]
[311218662,1704984672076,-150.53030045,0.00050074,44]
[311218663,1704984672088,-150.0,0.00050119,6]
[311218664,1704984672100,-997.08460245,0.00050131,14]
[311218665,1704984672110,-713.61483349,0.00050136,7]
[311218666,1704984672119,-191.0,0.00050137,10]
[311218667,1704984672129,-496.0,0.00050137,4]
[311218668,1704984672139,-3320.0,0.00050138,120]
[311218669,1704984672148,-350.0,0.00050192,120]
[311218670,1704984672158,-151.40111,0.00050198,10]
[311218671,1704984672167,-164.43287353,0.000502,30]
[311218672,1704984672176,-204.0,0.00050205,37]
[311218673,1704984672186,-150.0,0.00050299,6]
[311218674,1704984672196,-500.0,0.0005041,21]
[311218675,1704984672209,-555.71250259,0.0005041,21]
[311218676,1704984672219,-10411.7,0.00050453,117]
[311218677,1704984672229,-150.0,0.00050479,6]
[311218678,1704984672239,-151.40111,0.00050498,10]
[311218679,1704984672248,-1000.0,0.00050499,120]
[311218680,1704984672258,-273.60694682,0.0005051,26]
[311218681,1704984672268,-862.78336315,0.0005055,2]
[311218682,1704984672278,-150.0,0.00050659,6]
[311218683,1704984672288,-197.0,0.00050685,10]
[311218684,1704984672324,-510.0,0.00050685,5]
[311218685,1704984672334,-400.0,0.0005074,120]
[311218686,1704984672347,-294.62967775,0.0005075,2]
[311218687,1704984672356,-151.40111,0.00050798,10]
[311218688,1704984672366,-3270.309635,0.0005081,2]
[311218689,1704984672376,-150.0,0.00050839,6]
[311218690,1704984672386,-1515.0,0.0005089,3]
[311218691,1704984672395,-185.98,0.00050959,30]
[311218692,1704984672404,-100000.0,0.00051,21]
[311218693,1704984672414,-300.0,0.00051,52]
[311218694,1704984672424,-5000.0,0.00051,120]
[311218695,1704984672433,-70256.04982382,0.00051,30]
[311218696,1704984672447,-329743.95017618,0.00051,30]
[311218697,1704984672457,-9985.24897186,0.00051,30]
[311218698,1704984672467,-15000.0,0.00051,120]
[311218699,1704984672478,-200.0,0.00051,120]
[311218700,1704984672488,-447.0,0.00051,120]
[311218701,1704984672498,-500.0,0.00051,120]
[311218702,1704984672508,-500.0,0.00051,30]
[311218703,1704984672518,-589.435325,0.00051,14]
[311218704,1704984672530,-589.435328,0.00051,14]
[311218705,1704984672540,-300.0,0.00051,29]
[311218706,1704984672551,-300.0,0.00051,29]
[311218707,1704984672562,-150.0,0.00051,120]
[311218708,1704984672572,-178.177653,0.00051,120]
[311218709,1704984672583,-476.652934,0.00051,14]